fUST/lending_fUST_20240117
["ID","MTS","AMOUNT","RATE_DAILY","PERIOD"]
[311839165,1705447841494,-500.0,0.0003178,2]
[311839166,1705447841506,-500.0,0.0003178,2]
[311839167,1705447841515,-500.0,0.0003178,2]
[311839168,1705447841525,-500.0,0.0003178,2]
[311839169,1705447841535,-500.0,0.0003178,2]
[311839170,1705447841545,-500.0,0.0003178,2]
[311839171,1705447841556,-565.71824968,0.0003178,2]
[311839172,1705447841567,-500.0,0.0003178,2]
[311839173,1705447841577,-6515.06,0.0003178,2]
[311839174,1705447841586,-500.0,0.0003178,2]
[311839175,1705447841597,-500.0,0.0003178,2]
[311839176,1705447841607,-500.0,0.0003178,2]
[311839177,1705447841619,-500.0,0.0003178,2]
[311839178,1705447841628,-500.0,0.0003178,2]
[311839179,1705447841642,-500.0,0.0003178,2]
[311839180,1705447841652,-500.0,0.0003178,2]
[311839181,1705447841661,-501.42994804,0.0003178,2]
[311839182,1705447841671,-500.0,0.0003178,2]
[311839183,1705447841681,-726.86,0.0003178,2]
[311839184,1705447841691,-500.0,0.0003178,2]
[311839185,1705447841702,-1030.65,0.0003178,2]
[311839186,1705447841713,-500.0,0.0003178,2]
[311839187,1705447841784,-500.0,0.0003178,2]
[311839188,1705447841794,-1548.261823,0.0003178,2]
[311839189,1705447841803,-1548.261823,0.0003178,2]
[311839190,1705447841813,-500.0,0.0003178,2]
[311839191,1705447841824,-3523.7,0.0003178,2]
[311839192,1705447841834,-1363.56,0.0003178,2]
[311839193,1705447841844,-1540.73,0.0003178,2]
[311839194,1705447841854,-500.41994784,0.0003178,2]
[311839195,1705447841864,-500.0,0.0003178,2]
[311839196,1705447841873,-500.0,0.0003178,2]
[311839197,1705447841884,-465.78510027,0.0003178,2]
[311839198,1705447841894,-500.0,0.0003178,2]
[311839199,1705447841904,-500.0,0.0003178,2]
[311839200,1705447841916,-500.0,0.0003178,2]
[311839201,1705447841925,-500.0,0.0003178,2]
[311839202,1705447841934,-500.0,0.0003178,2]
[311839203,1705447841944,-500.0,0.0003178,2]
[311839204,1705447841954,-893.27,0.0003178,2]
[311839205,1705447841964,-500.0,0.0003178,2]
[311839206,1705447841975,-500.0,0.0003178,2]
[311839207,1705447841985,-154.85090275,0.0003178,2]
[311839208,1705447841995,-500.0,0.0003178,2]
[311839209,1705447842004,-500.0,0.0003178,2]
[311839210,1705447842014,-250.00911361,0.0003178,2]
[311839211,1705447842024,-325.98672539,0.0003178,2]
[311839212,1705447842034,-602.19131901,0.0003178,2]
[311839213,1705447842043,-500.0,0.0003178,2]
[311839214,1705447842054,-500.0,0.0003178,2]
[311839215,1705447842064,-1530.62,0.0003178,2]
[311839216,1705447842074,-500.0,0.0003178,2]
[311839217,1705447842084,-500.0,0.0003178,2]
[311839218,1705447842093,-500.0,0.0003178,2]
[311839219,1705447842103,-500.0,0.0003178,2]
[311839220,1705447842112,-501.44378006,0.0003178,2]
[311839221,1705447842121,-469.16022048,0.0003178,2]
[311839222,1705447842130,-500.0,0.0003178,2]
[311839223,1705447842140,-500.0,0.0003178,2]
[311839224,1705447842149,-500.0,0.0003178,2]
[311839225,1705447842159,-500.0,0.0003178,2]
[311839226,1705447842168,-500.0,0.0003178,2]
[311839227,1705447842177,-773.87,0.00031796,2]
[311839228,1705447842186,-198.9082381,0.000318,2]
[311839230,1705447842195,-198.9082381,0.000318,2]
[311839232,1705447842205,-500.0,0.00031867,2]
[311839235,1705447842215,-401.38581006,0.00031867,2]
[311839237,1705447842224,-500.0,0.00031867,2]
[311839239,1705447842233,-500.0,0.00031867,2]
[311839240,1705447842242,-500.0,0.00031867,2]
[311839241,1705447842251,-500.0,0.00031867,2]
[311839242,1705447842260,-500.0,0.00031867,2]
[311839243,1705447842270,-409.21817577,0.00031867,2]
[311839245,1705447842279,-500.0,0.00031867,2]
[311839247,1705447842290,-500.0,0.00031867,2]
[311839249,1705447842299,-500.0,0.00031867,2]
[311839251,1705447842309,-500.0,0.00031867,2]
[311839253,1705447842318,-241.16484939,0.00031867,2]
[311839255,1705447842328,-185.25656767,0.00031867,2]
[311839256,1705447842338,-500.0,0.00031867,2]
[311839257,1705447842347,-393.90571792,0.00031867,2]
[311839258,1705447842356,-500.0,0.00031867,2]
[311839259,1705447842365,-209.70889545,0.00031867,2]
[311839261,1705447842375,-500.0,0.00031867,2]
[311839263,1705447842384,-650.34016998,0.00031867,2]
[311839264,1705447842393,-500.0,0.00031867,2]
[311839266,1705447842403,-500.0,0.00031867,2]
[311839267,1705447842412,-500.0,0.00031867,2]
[311839268,1705447842421,-500.0,0.00031867,2]
[311839270,1705447842431,-500.0,0.00031867,2]
[311839272,1705447842440,-387.12705343,0.00031867,2]
[311839274,1705447842450,-500.0,0.00031867,2]
[311839276,1705447842459,-1375.240196,0.00031868,2]
[311839278,1705447842468,-1375.240196,0.00031868,2]
[311839280,1705447842477,-151.0,0.00031868,2]
[311839282,1705447842485,-151.0,0.00031868,2]
[311839284,1705447842494,-50000.0,0.00031868,7]
[311839286,1705447842503,-412.16010931,0.00031883,4]
[311839288,1705447842512,-820.41290746,0.00031898,4]
[311839289,1705447842521,-198.9082381,0.000319,2]
[311839292,1705447842530,-198.9082381,0.000319,2]
[311839294,1705447842539,-198.9082381,0.000319,2]
[311839297,1705447842548,-198.9082381,0.000319,2]
[311839298,1705447842557,-198.9082381,0.000319,2]
[311839299,1705447842566,-1216.77698407,0.00031906,2]
[311839300,1705447842576,-396.83121743,0.00031906,2]
[311839301,1705447842586,-1000.0,0.00031906,7]
[311839302,1705447842595,-1000.0,0.00031906,7]
[311839303,1705447842603,-700.0,0.00031906,2]
[311839304,1705447842612,-500.0,0.00031908,4]
[311839305,1705447842621,-500.0,0.00031908,4]
[311839306,1705447842630,-500.0,0.00031908,4]
[311839307,1705447842642,-642.11376334,0.00031908,4]
[311839308,1705447842652,-448.71663932,0.00031908,4]
[311839309,1705447842662,-500.0,0.00031908,4]
[311839310,1705447842670,-500.0,0.00031908,4]
[311839312,1705447842680,-500.0,0.00031908,4]
[311839313,1705447842689,-500.0,0.00031908,4]
[311839314,1705447842698,-500.0,0.00031908,4]
[311839315,1705447842708,-500.0,0.00031908,4]
[311839316,1705447842716,-500.0,0.00031908,4]
[311839317,1705447842725,-500.0,0.00031908,4]
[311839318,1705447842734,-500.0,0.00031908,4]
[311839319,1705447842743,-500.0,0.00031908,4]
[311839320,1705447842752,-260.23404753,0.00031908,4]
[311839321,1705447842761,-149359.373747,0.00031909,2]
[311839322,1705447842793,-14614.765784,0.00031909,2]
[311839323,1705447843320,-500.0,0.00031908,4]
[311839324,1705447843330,-189.20040448,0.00031908,4]
[311839325,1705447843339,-53519.20439474,0.00031909,2]
[311839338,1705447845856,-198.9082381,0.00031178,2]
[311839339,1705447845866,-154.95351395,0.00031769,5]
[311839340,1705447845875,-1324.18,0.0003177,3]
[311839341,1705447845885,-337.5786491,0.00031779,4]
[311839342,1705447845896,-202.20967617,0.00031779,4]
[311839343,1705447845905,-164.33006475,0.0003178,2]
[311839344,1705447845917,-335.66993525,0.0003178,2]
[311839345,1705447845926,-500.0,0.0003178,2]
[311839346,1705447845935,-506.7967264,0.0003178,2]
[311839347,1705447845944,-500.0,0.00031867,2]
[311839348,1705447845953,-1621.45101491,0.00031909,2]
[311839441,1705449032088,-245.97076083,0.0002645,2]
[311839443,1705449032098,-154.95351395,0.00026451,4]
[311839445,1705449032109,-606.8645406,0.00026451,2]
[311839447,1705449032118,-3359.67087414,0.00026451,2]
[311839449,1705449032128,-689.7089677,0.00026451,2]
[311839452,1705449032139,-1948.83314749,0.00026451,2]
[311839454,1705449032149,-1045.05948708,0.00026452,2]
[311839456,1705449032158,-1280.35396468,0.00026453,2]
[311839458,1705449032171,-3528.98088884,0.00026453,2]
[311839460,1705449032181,-3904.6934074,0.00026454,2]
[311839462,1705449032190,-178.57838263,0.00027306,2]
[311839464,1705449032199,-1588.5756211,0.00027306,2]
[311839466,1705449032208,-294.57737238,0.00027307,2]
[311839468,1705449032218,-2032.26842412,0.00027307,2]
[311839470,1705449032227,-164.97224594,0.00027308,2]
[311839472,1705449032236,-2995.10791787,0.00027308,2]
[311839474,1705449032245,-237.70431469,0.00027308,2]
[311839476,1705449032255,-3988.92142032,0.00027308,2]
[311839635,1705449038083,-20.22719484,0.00027308,2]
[311839637,1705449038092,-526.19977784,0.00027309,2]
[311839639,1705449038102,-6829.94008773,0.00027316,2]
[311839641,1705449038111,-9650.05234737,0.0002732,2]
[311839643,1705449038120,-166.666666,0.00027338,2]
[311839645,1705449038131,-262.7092029,0.00027371,2]
[311839647,1705449038140,-5000.0,0.00028357,5]
[311839649,1705449038149,-1230.62293058,0.00028942,2]
[311839651,1705449038158,-1964.45476973,0.00028942,2]
[311839653,1705449038167,-155.22168681,0.00029088,2]
[311839655,1705449038176,-2454.74382412,0.0002919,2]
[311839657,1705449038185,-6455.62104739,0.00029191,2]
[311839659,1705449038194,-975.85,0.00029224,3]
[311839661,1705449038203,-1523.62,0.00029224,3]
[311839663,1705449038212,-1269.68,0.00029224,3]
[311839665,1705449038221,-1058.07,0.00029226,3]
[311839667,1705449038230,-239.79229807,0.00029232,2]
[311839669,1705449038240,-357.07948089,0.00029232,2]
[311839671,1705449038249,-225.94554747,0.00029232,2]
[311839673,1705449038258,-253.25635323,0.00029232,2]
[311839675,1705449038267,-532.73969854,0.00029232,2]
[311839677,1705449038277,-466.95348561,0.00029233,2]
[311839679,1705449038285,-2101.23068297,0.00029234,2]
[311839681,1705449038294,-276.37694503,0.00029234,2]
[311839683,1705449038304,-3563.670665,0.00029234,2]
[311839685,1705449038313,-787.41722526,0.00029234,2]
[311839687,1705449038322,-308.22144291,0.00029234,2]
[311839689,1705449038331,-1056.03690816,0.00029234,7]
[311839691,1705449038340,-521.37403251,0.00029234,2]
[311839693,1705449038348,-616.12530775,0.00029234,2]
[311839695,1705449038357,-740.94020881,0.00029234,2]
[311839697,1705449038366,-273.73919601,0.00029234,2]
[311839699,1705449038376,-3952.32978871,0.00029234,2]
[311839701,1705449038386,-460.35119232,0.00029234,2]
[311839703,1705449038394,-154.95351395,0.00029234,2]
[311839705,1705449038403,-260.47007699,0.00029234,2]
[311839707,1705449038412,-282.61552771,0.00029234,2]
[311839709,1705449038421,-560.82400817,0.00029234,2]
[311839711,1705449038430,-10146.4321391,0.00029234,2]
[311839713,1705449038439,-40380.61220048,0.00029236,5]
[311839715,1705449038449,-9085.63774511,0.00029236,5]
[311839717,1705449038458,-5000.0,0.00029254,5]
[311839719,1705449038467,-5944.51680872,0.00029281,5]
[311839721,1705449038477,-198.9082381,0.00029678,2]
[311839723,1705449038486,-241.29907681,0.00029809,2]
[311839725,1705449038495,-1717.0,0.0003,2]
[311839727,1705449038504,-1053.90871408,0.0003,5]
[311839729,1705449038514,-365.43425783,0.0003,4]
[311839731,1705449038522,-153.0,0.00030137,2]
[311839733,1705449038531,-153.0,0.00030137,2]
[311839735,1705449038540,-198.9082381,0.00030137,2]
[311839737,1705449038549,-198.9082381,0.00030137,2]
[311839739,1705449038558,-198.9082381,0.00030137,2]
[311839741,1705449038567,-198.9082381,0.00030137,2]
[311839743,1705449038578,-198.9082381,0.00030137,2]
[311839745,1705449038587,-198.9082381,0.00030137,2]
[311839747,1705449038596,-198.9082381,0.00030137,2]
[311839749,1705449038606,-198.9082381,0.00030137,2]
[311839751,1705449038615,-153.0,0.00030137,2]
[311839753,1705449038625,-198.9082381,0.00030137,2]
[311839755,1705449038635,-198.9082381,0.00030137,2]
[311839757,1705449038643,-189.96074094,0.00030273,4]
[311839759,1705449038652,-600.97778314,0.00030499,2]
[311839761,1705449038661,-2910.159785,0.000307,2]
[311839763,1705449038670,-96967.64815275,0.00031,4]
[311839765,1705449038681,-198.9082381,0.00031078,2]
[311839767,1705449038691,-198.9082381,0.00031078,2]
[311839769,1705449038700,-198.9082381,0.00031078,2]
[311839771,1705449038709,-198.9082381,0.00031078,2]
[311839773,1705449038718,-198.9082381,0.00031078,2]
[311839775,1705449038727,-155.74099856,0.00031219,7]
[311839777,1705449038736,-1500.0,0.000317,2]
[311839779,1705449038745,-161.06384901,0.00031734,7]
[311839781,1705449038753,-158.0,0.0003177,30]
[311839783,1705449038763,-3156.0,0.0003177,30]
[311839785,1705449038772,-230.61841598,0.00031778,4]
[311839787,1705449038781,-4007.40490575,0.00031778,3]
[311839789,1705449038790,-464.7983865,0.00031779,4]
[311839791,1705449038799,-180.1,0.00031779,2]
[311839793,1705449038808,-180.1,0.00031779,2]
[311839795,1705449038816,-180.1,0.00031779,2]
[311839797,1705449038827,-180.1,0.00031779,2]
[311839799,1705449038837,-180.1,0.00031779,2]
[311839801,1705449038846,-500.0,0.00031779,2]
[311839803,1705449038855,-500.0,0.00031779,2]
[311839805,1705449038865,-500.0,0.00031779,2]
[311839807,1705449038876,-629.56642425,0.00031779,2]
[311839809,1705449038885,-552.85989877,0.00031779,2]
[311839811,1705449038894,-500.0,0.00031779,2]
[311839813,1705449038903,-500.0,0.00031779,2]
[311839815,1705449038912,-500.0,0.00031779,2]
[311839817,1705449038921,-500.0,0.00031779,2]
[311839819,1705449038930,-500.0,0.00031779,2]
[311839821,1705449038939,-500.0,0.00031779,2]
[311839823,1705449038948,-500.0,0.00031779,2]
[311839825,1705449038957,-500.0,0.00031779,2]
[311839827,1705449038966,-185.40171916,0.00031779,2]
[311839829,1705449038975,-500.0,0.00031779,2]
[311839831,1705449038984,-500.0,0.00031779,2]
[311839833,1705449038993,-500.0,0.00031779,2]
[311839835,1705449039002,-500.0,0.00031779,2]
[311839837,1705449039011,-500.0,0.00031779,2]
[311839839,1705449039020,-158.76305874,0.00031779,2]
[311839841,1705449039030,-344.33646566,0.00031779,2]
[311839843,1705449039040,-500.0,0.00031779,2]
[311839845,1705449039049,-500.0,0.00031779,2]
[311839846,1705449039059,-500.0,0.00031779,2]
[311839848,1705449039068,-293.90571792,0.00031779,2]
[311839850,1705449039077,-500.0,0.00031779,2]
[311839853,1705449039086,-162.79247859,0.00031779,2]
[311839854,1705449039095,-500.0,0.00031779,2]
[311839857,1705449039106,-444.74626309,0.00031779,2]
[311839858,1705449039115,-500.0,0.00031779,2]
[311839861,1705449039125,-500.0,0.00031779,2]
[311839870,1705449039205,-500.0,0.00031779,2]
[311839872,1705449039214,-500.0,0.00031779,2]
[311839874,1705449039223,-500.0,0.00031779,2]
[311839876,1705449039232,-500.0,0.00031779,2]
[311839877,1705449039242,-500.0,0.00031779,2]
[311839878,1705449039251,-500.0,0.00031779,2]
[311839879,1705449039260,-500.0,0.00031779,2]
[311839881,1705449039269,-500.0,0.00031779,2]
[311839883,1705449039278,-500.0,0.00031779,2]
[311839885,1705449039287,-500.0,0.00031779,2]
[311839886,1705449039296,-325.69804921,0.0003178,2]
[311839888,1705449039305,-500.0,0.0003178,2]
[311839890,1705449039315,-500.0,0.0003178,2]
[311839891,1705449039324,-500.0,0.0003178,2]
[311839893,1705449039333,-500.0,0.0003178,2]
[311839894,1705449039343,-500.0,0.0003178,2]
[311839895,1705449039353,-427.70821811,0.0003178,2]
[311839897,1705449039362,-500.0,0.0003178,2]
[311839899,1705449039371,-500.0,0.0003178,2]
[311839900,1705449039381,-254.73333895,0.0003178,2]
[311839902,1705449039390,-500.0,0.0003178,2]
[311839903,1705449039399,-554.32556193,0.0003178,2]
[311839905,1705449039408,-500.0,0.0003178,2]
[311839906,1705449039418,-500.0,0.0003178,2]
[311839908,1705449039426,-510.22549501,0.0003178,2]
[311839910,1705449039435,-509.82347944,0.0003178,2]
[311839911,1705449039444,-500.4137572,0.0003178,2]
[311839913,1705449039453,-500.0,0.0003178,2]
[311839915,1705449039462,-524.52232068,0.0003178,2]
[311839916,1705449039471,-500.0,0.0003178,2]
[311839918,1705449039481,-500.0,0.0003178,2]
[311839919,1705449039491,-155.93861246,0.0003178,2]
[311839920,1705449039500,-503.24411305,0.0003178,2]
[311839921,1705449039509,-500.0,0.0003178,2]
[311839922,1705449039519,-500.0,0.0003178,2]
[311839923,1705449039528,-500.0,0.0003178,2]
[311839924,1705449039537,-502.71971081,0.0003178,2]
[311839925,1705449039546,-500.0,0.0003178,2]
[311839926,1705449039555,-500.0,0.0003178,2]
[311839927,1705449039564,-500.0,0.0003178,2]
[311839928,1705449039573,-500.0,0.0003178,2]
[311839929,1705449039582,-465.32914216,0.0003178,2]
[311839930,1705449039591,-500.0,0.0003178,2]
[311839931,1705449039600,-500.0,0.0003178,2]
[311839932,1705449039609,-508.84364102,0.0003178,2]
[311839933,1705449039619,-500.0,0.0003178,2]
[311839934,1705449039629,-500.51196504,0.0003178,2]
[311839935,1705449039638,-500.0,0.0003178,2]
[311839936,1705449039647,-500.0,0.0003178,2]
[311839937,1705449039656,-504.42543785,0.0003178,2]
[311839938,1705449039665,-500.0,0.0003178,2]
[311839939,1705449039674,-500.0,0.0003178,2]
[311839940,1705449039683,-500.0,0.0003178,2]
[311839941,1705449039693,-500.0,0.0003178,2]
[311839942,1705449039702,-500.0,0.0003178,2]
[311839943,1705449039711,-642.80442066,0.0003178,2]
[311839944,1705449039721,-500.0,0.0003178,2]
[311839945,1705449039730,-500.0,0.0003178,2]
[311839946,1705449039739,-500.0,0.0003178,2]
[311839947,1705449039748,-500.0,0.0003178,2]
[311839948,1705449039757,-500.0,0.0003178,2]
[311839949,1705449039766,-500.0,0.0003178,2]
[311839950,1705449039775,-500.0,0.0003178,2]
[311839951,1705449039784,-557.80656287,0.0003178,2]
[311839952,1705449039793,-500.0,0.0003178,2]
[311839953,1705449039802,-629.18094944,0.0003178,2]
[311839954,1705449039812,-500.0,0.0003178,2]
[311839955,1705449039822,-524.52,0.0003178,2]
[311839956,1705449039832,-500.0,0.0003178,2]
[311839957,1705449039841,-500.0,0.0003178,2]
[311839958,1705449039850,-500.0,0.0003178,2]
[311839959,1705449039859,-500.59042,0.0003178,2]
[311839960,1705449039869,-500.0,0.0003178,2]
[311839961,1705449039878,-500.0,0.0003178,2]
[311839962,1705449039887,-1000.0,0.0003178,2]
[311839963,1705449039897,-500.0,0.0003178,2]
[311839964,1705449039906,-557.01681763,0.0003178,2]
[311839965,1705449039915,-155.14192239,0.0003178,2]
[311839966,1705449039924,-500.0,0.0003178,2]
[311839967,1705449039933,-500.0,0.0003178,2]
[311839968,1705449039943,-500.0,0.0003178,2]
[311839969,1705449039952,-500.0,0.0003178,2]
[311839970,1705449039961,-284.04382982,0.0003178,2]
[311839971,1705449039970,-500.0,0.0003178,2]
[311839972,1705449039979,-500.0,0.0003178,2]
[311839973,1705449039988,-500.0,0.0003178,2]
[311839974,1705449039997,-500.0,0.0003178,2]
[311839975,1705449040006,-500.0,0.0003178,2]
[311839976,1705449040016,-500.0,0.0003178,2]
[311839978,1705449040025,-500.0,0.0003178,2]
[311839980,1705449040036,-500.0,0.0003178,2]
[311839981,1705449040045,-375.15030904,0.0003178,2]
[311839982,1705449040056,-500.0,0.0003178,2]
[311839983,1705449040065,-500.0,0.0003178,2]
[311839984,1705449040075,-1136.89,0.0003178,2]
[311839985,1705449040084,-501.56909067,0.0003178,2]
[311839986,1705449040093,-500.0,0.0003178,2]
[311839987,1705449040102,-500.0,0.0003178,2]
[311839988,1705449040112,-500.0,0.0003178,2]
[311839989,1705449040121,-500.0,0.0003178,2]
[311839990,1705449040130,-500.0,0.0003178,2]
[311839991,1705449040139,-500.0,0.0003178,2]
[311839992,1705449040148,-500.0,0.0003178,2]
[311839993,1705449040157,-387.36439512,0.0003178,2]
[311839994,1705449040166,-500.0,0.0003178,2]
[311839995,1705449040175,-500.0,0.0003178,2]
[311839996,1705449040184,-354.86930357,0.0003178,2]
[311839997,1705449040194,-500.0,0.0003178,2]
[311839998,1705449040203,-500.0,0.0003178,2]
[311840000,1705449040212,-500.0,0.0003178,2]
[311840001,1705449040220,-150.0,0.0003178,2]
[311840003,1705449040230,-500.0,0.0003178,2]
[311840005,1705449040239,-500.59560856,0.0003178,2]
[311840006,1705449040247,-500.0,0.0003178,2]
[311840008,1705449040256,-500.0,0.0003178,2]
[311840009,1705449040266,-500.0,0.0003178,2]
[311840010,1705449040275,-502.24408651,0.0003178,2]
[311840011,1705449040284,-500.0,0.0003178,4]
[311840013,1705449040293,-500.0,0.0003178,2]
[311840014,1705449040302,-500.0,0.0003178,2]
[311840015,1705449040311,-500.0,0.0003178,2]
[311840016,1705449040320,-500.0,0.0003178,2]
[311840017,1705449040329,-506.18783896,0.0003178,2]
[311840018,1705449040338,-500.0,0.0003178,2]
[311840019,1705449040348,-500.0,0.0003178,2]
[311840020,1705449040357,-500.0,0.0003178,2]
[311840021,1705449040366,-500.0,0.0003178,2]
[311840022,1705449040375,-500.0,0.0003178,2]
[311840023,1705449040384,-636.26,0.0003178,2]
[311840024,1705449040394,-500.0,0.0003178,2]
[311840025,1705449040403,-500.0,0.0003178,2]
[311840026,1705449040411,-1385.58,0.0003178,2]
[311840027,1705449040421,-623.96,0.0003178,2]
[311840028,1705449040433,-500.0,0.0003178,2]
[311840029,1705449040442,-767.93,0.0003178,2]
[311840030,1705449040451,-500.0,0.0003178,2]
[311840031,1705449040460,-500.0,0.0003178,2]
[311840032,1705449040469,-500.0,0.0003178,2]
[311840033,1705449040478,-503.5641367,0.0003178,2]
[311840034,1705449040487,-500.0,0.0003178,2]
[311840035,1705449040497,-500.0,0.0003178,2]
[311840036,1705449040506,-500.0,0.0003178,2]
[311840037,1705449040515,-500.0,0.0003178,2]
[311840038,1705449040524,-500.0,0.0003178,2]
[311840039,1705449040533,-500.0,0.0003178,2]
[311840040,1705449040543,-500.0,0.0003178,2]
[311840041,1705449040552,-746.3,0.0003178,2]
[311840042,1705449040562,-486.66382709,0.0003178,2]
[311840043,1705449040571,-509.60832325,0.0003178,2]
[311840044,1705449040580,-500.0,0.0003178,2]
[311840045,1705449040589,-571.56639859,0.0003178,2]
[311840046,1705449040663,-500.0,0.0003178,2]
[311840047,1705449040673,-500.0,0.0003178,2]
[311840048,1705449040682,-500.0,0.0003178,2]
[311840049,1705449040691,-500.0,0.0003178,2]
[311840050,1705449040700,-500.0,0.0003178,2]
[311840051,1705449040709,-465.78510027,0.0003178,2]
[311840052,1705449040718,-500.0,0.0003178,2]
[311840053,1705449040728,-882.95,0.0003178,2]
[311840054,1705449040737,-500.0,0.0003178,2]
[311840055,1705449040746,-500.0,0.0003178,2]
[311840056,1705449040756,-500.0,0.0003178,2]
[311840057,1705449040766,-602.19131901,0.0003178,2]
[311840058,1705449040776,-500.0,0.0003178,2]
[311840060,1705449040785,-500.0,0.0003178,2]
[311840062,1705449040795,-500.0,0.0003178,2]
[311840063,1705449040804,-500.0,0.0003178,2]
[311840064,1705449040813,-500.0,0.0003178,2]
[311840065,1705449040823,-500.0,0.0003178,2]
[311840066,1705449040833,-500.0,0.0003178,2]
[311840068,1705449040842,-500.0,0.0003178,2]
[311840069,1705449040852,-500.0,0.0003178,2]
[311840070,1705449040861,-10026.40145597,0.0003178,10]
[311840071,1705449040871,-500.0,0.0003178,2]
[311840072,1705449040881,-500.0,0.0003178,2]
[311840073,1705449040891,-501.90946252,0.0003178,2]
[311840075,1705449040900,-565.71824968,0.0003178,2]
[311840076,1705449040909,-500.0,0.0003178,2]
[311840078,1705449040918,-500.0,0.0003178,2]
[311840079,1705449040927,-500.0,0.0003178,2]
[311840080,1705449040936,-319.64882273,0.0003178,2]
[311840081,1705449040947,-556.95,0.0003178,2]
[311840082,1705449040955,-500.0,0.0003178,2]
[311840083,1705449040965,-500.0,0.0003178,2]
[311840084,1705449040974,-500.0,0.0003178,2]
[311840085,1705449040983,-154.85090275,0.0003178,2]
[311840086,1705449040993,-500.0,0.0003178,2]
[311840087,1705449041002,-500.0,0.0003178,2]
[311840088,1705449041014,-500.0,0.0003178,2]
[311840089,1705449041023,-325.98672539,0.0003178,2]
[311840090,1705449041036,-500.0,0.0003178,2]
[311840091,1705449041045,-501.87620769,0.0003178,2]
[311840092,1705449041055,-197.29705846,0.0003178,2]
[311840093,1705449041065,-500.52949788,0.0003178,2]
[311840094,1705449041074,-500.0,0.0003178,2]
[311840095,1705449041083,-500.0,0.0003178,2]
[311840096,1705449041093,-2765.93,0.0003178,2]
[311840097,1705449041104,-500.0,0.0003178,2]
[311840098,1705449041113,-500.0,0.0003178,2]
[311840099,1705449041123,-225.97871656,0.0003178,2]
[311840100,1705449041133,-500.0,0.0003178,2]
[311840101,1705449041142,-500.0,0.0003178,2]
[311840102,1705449041151,-500.0,0.0003178,2]
[311840103,1705449041160,-500.0,0.0003178,2]
[311840104,1705449041168,-296.42767224,0.0003178,2]
[311840105,1705449041177,-500.0,0.0003178,2]
[311840106,1705449041186,-521.137917,0.0003178,2]
[311840107,1705449041194,-500.0,0.0003178,2]
[311840108,1705449041203,-500.0,0.0003178,2]
[311840109,1705449041212,-590.81521327,0.0003178,2]
[311840110,1705449041222,-500.0,0.0003178,2]
[311840111,1705449041231,-500.0,0.0003178,2]
[311840112,1705449041240,-501.44378006,0.0003178,2]
[311840113,1705449041249,-500.0,0.0003178,2]
[311840114,1705449041258,-1006.02,0.0003178,2]
[311840115,1705449041267,-500.0,0.0003178,2]
[311840116,1705449041276,-500.0,0.0003178,2]
[311840117,1705449041285,-500.0,0.0003178,2]
[311840118,1705449041294,-500.0,0.0003178,2]
[311840119,1705449041303,-501.0625085,0.0003178,2]
[311840120,1705449041312,-500.0,0.0003178,2]
[311840121,1705449041322,-815.54,0.0003178,2]
[311840122,1705449041331,-815.54,0.0003178,2]
[311840123,1705449041340,-815.54,0.0003178,2]
[311840124,1705449041350,-815.54,0.0003178,2]
[311840125,1705449041359,-815.54,0.0003178,2]
[311840126,1705449041368,-815.54,0.0003178,2]